bitfinex/quotes_ETHUSD_20250217
["timestamp","ask_amount","ask_price","bid_price","bid_amount"]
[1739782647292,4.50392,2719.5,2718.9,0.7771]
[1739782647493,4.983112,2719.5,2718.9,0.7771]
[1739782647904,3.67743,2719.3,2718.9,0.7771]
[1739782648104,7.35493,2719.3,2718.9,0.7771]
[1739782648330,3.67743,2719.3,2718.9,0.7771]
[1739782648532,3.67765,2719.2,2718.9,0.7771]
[1739782648841,3.6777,2719.1,2718.9,0.7771]
[1739782650369,3.67782,2719.0,2718.9,0.7771]
[1739782650682,3.67799,2718.9,2718.7,3.49914492]
[1739782651503,3.67799,2718.9,2718.5,3.74644348]
[1739782651504,0.735577,2718.9,2718.5,0.74644348]
[1739782651771,3.67744,2719.3,2718.3,0.8014]
[1739782651772,3.67856,2718.5,2718.3,0.8014]
[1739782652069,3.67876,2718.3,2718.2,0.72788481]
[1739782652366,0.287,2718.9,2717.7,4.31284492]
[1739782652367,3.67917,2718.0,2717.7,4.31284492]
[1739782652525,3.67931,2717.9,2717.8,1.25904352]
[1739782652729,3.67931,2717.9,2717.8,0.94402437]
[1739782653651,5.252958,2717.9,2717.8,0.94402437]
[1739782653848,5.252958,2717.9,2717.8,0.43231324]
[1739782654366,5.252958,2717.9,2717.0,0.8015]
[1739782654367,3.68021,2717.3,2717.1,0.43231324]
[1739782654762,3.68021,2717.3,2717.2,0.03447841]
[1739782655174,3.67985,2717.5,2717.2,0.03447841]
[1739782655385,3.68008,2717.4,2717.2,0.03447841]
[1739782655676,3.67985,2717.5,2717.2,0.03447841]
[1739782655899,3.68008,2717.4,2717.2,0.03447841]
[1739782656249,3.68039,2717.1,2716.9,0.75108931]
[1739782656444,3.6804,2717.1,2716.9,0.75108931]
[1739782656653,3.68052,2717.0,2716.7,4.31554492]
[1739782657049,3.6808,2716.8,2716.7,0.75028564]
[1739782657784,3.68116,2716.6,2716.1,4.31674492]
[1739782657983,3.68136,2716.4,2716.1,5.11660341]
[1739782658149,3.68136,2716.4,2716.1,0.8176]
[1739782658344,3.68136,2716.4,2715.8,4.31674492]
[1739782658574,3.68151,2716.3,2715.8,4.31674492]
[1739782658769,3.6817,2716.2,2715.9,3.0]
[1739782658971,3.68178,2716.1,2715.9,3.0]
[1739782659173,3.6817,2716.2,2715.8,4.31674492]
[1739782660150,3.6817,2716.2,2715.9,3.0]
[1739782660850,3.6817,2716.2,2715.8,4.31674492]
[1739782661258,3.68138,2716.4,2715.8,4.31674492]
[1739782661459,3.68039,2717.1,2716.3,3.68139]
[1739782661664,3.68039,2717.1,2715.9,3.0]
[1739782661665,3.68039,2717.1,2716.4,4.27594492]
[1739782661882,3.68039,2717.1,2716.5,4.23117]
[1739782662085,4.130529,2717.1,2716.5,4.23117]
[1739782662665,3.68053,2717.0,2716.5,4.23117]
[1739782663183,3.68053,2717.0,2716.5,0.55]
[1739782663501,3.68053,2717.0,2716.5,4.23118]
[1739782663707,3.6806,2717.0,2716.5,0.55]
[1739782663889,3.68077,2716.9,2716.5,0.55]
[1739782664407,3.68077,2716.9,2716.4,0.7768]
[1739782664408,3.68095,2716.7,2716.4,0.7768]
[1739782664605,3.68095,2716.7,2716.2,3.0]
[1739782664606,0.7811509,2716.9,2716.2,3.0]
[1739782664808,7.36278,2716.4,2716.1,0.7997]
[1739782664973,3.68141,2716.4,2715.9,3.0]
[1739782665300,3.68168,2716.2,2715.8,0.7536]
[1739782665501,3.68168,2716.2,2715.6,3.68236]
[1739782665502,0.7764,2715.9,2715.6,3.68236]
[1739782665683,4.45854,2715.9,2715.4,3.0]
[1739782665882,1.222254,2715.9,2715.2,3.49914492]
[1739782666077,0.7764,2715.9,2715.2,3.49914492]
[1739782666300,3.68224,2715.8,2715.3,6.68278]
[1739782666505,4.45851,2715.9,2715.3,6.68278]
[1739782666681,3.68229,2715.7,2715.3,3.0]
[1739782666890,3.68238,2715.7,2715.2,3.53596998]
[1739782667072,3.68252,2715.6,2715.2,3.49914492]
[1739782667408,3.68265,2715.5,2715.1,0.7985]
[1739782667572,4.050772,2715.6,2715.1,0.7985]
[1739782667768,0.286,2715.5,2715.1,0.7985]
[1739782667974,0.286,2715.5,2715.2,0.55]
[1739782668174,0.286,2715.5,2714.9,4.51188]
[1739782668375,0.286,2715.5,2715.1,3.68302]
[1739782668686,0.286,2715.5,2715.2,0.55]
[1739782668981,0.7764,2715.9,2715.4,3.6826]
[1739782669185,0.7764,2715.9,2715.2,0.55]
[1739782669186,0.286,2715.7,2715.3,3.68272]
[1739782669396,0.286,2715.9,2715.5,3.68247]
[1739782669601,0.286,2715.9,2715.4,0.8286]
[1739782669783,3.68235,2715.7,2715.2,7.04914492]
[1739782669973,3.68235,2715.7,2715.3,0.03666823]
[1739782670805,3.68257,2715.5,2715.3,0.03666823]
[1739782671009,0.8098,2715.7,2715.3,0.03666823]
[1739782671221,3.68218,2715.8,2715.3,0.03666823]
[1739782671423,1.2085022,2715.7,2715.3,0.03666823]
[1739782672085,4.8909022,2715.7,2715.3,0.03666823]
[1739782672425,7.36498,2715.6,2715.3,0.03666823]
[1739782672625,1.2085022,2715.7,2715.3,0.03666823]
[1739782672626,3.68269,2715.4,2715.3,0.03666823]
[1739782672823,3.68269,2715.4,2714.7,3.68357]
[1739782672824,4.44819,2715.4,2714.7,3.68357]
[1739782673010,3.68305,2715.2,2714.8,3.0]
[1739782673210,3.68305,2715.2,2714.6,5.02346302]
[1739782673211,3.68325,2715.0,2714.6,1.5243181]
[1739782673605,3.68325,2715.0,2714.6,3.7918]
[1739782673806,3.68325,2715.0,2714.7,0.55]
[1739782674013,3.68305,2715.2,2714.7,4.23363]
[1739782674346,3.68295,2715.3,2714.8,3.0]
[1739782674630,3.68301,2715.2,2714.8,3.0]
[1739782675131,3.68287,2715.3,2715.0,0.55]
[1739782675333,3.68287,2715.3,2714.8,3.0]
[1739782675637,3.68287,2715.3,2714.9,0.55]
[1739782676303,3.68263,2715.5,2715.0,3.68321]
[1739782676498,0.285,2715.4,2715.0,3.68321]
[1739782677241,3.96777,2715.4,2714.9,0.55]
[1739782677540,0.8145,2715.7,2714.9,0.55]
[1739782677767,4.49691,2715.7,2715.2,3.68295]
[1739782678275,3.68185,2716.1,2715.3,3.68273]
[1739782678276,0.284,2715.9,2715.3,3.68273]
[1739782678420,3.9661,2715.9,2715.4,3.68262]
[1739782678620,3.68215,2715.8,2715.3,3.6828]
[1739782679034,0.284,2715.9,2715.2,0.03682583]
[1739782679337,0.284,2715.9,2715.5,3.68247]
[1739782679537,12.70576646,2716.3,2715.7,3.68228]
[1739782679538,5.18786646,2716.3,2715.7,3.68228]
[1739782679738,0.284,2716.1,2715.6,5.03855]
[1739782680032,0.284,2716.1,2715.8,3.68207]
[1739782680253,0.284,2716.1,2715.6,5.03855]
[1739782680575,0.284,2716.1,2715.6,5.03852]
[1739782680726,3.68196,2716.0,2715.6,1.3412]
[1739782681121,3.68172,2716.2,2715.6,1.3412]
[1739782681362,0.471883,2716.1,2715.6,5.02353]
[1739782681521,3.68172,2716.2,2715.7,3.68221]
[1739782681718,3.68172,2716.2,2715.6,5.02353]
[1739782682027,3.68172,2716.2,2715.6,1.3412]
[1739782682423,3.68172,2716.2,2715.6,5.02355]
[1739782682760,3.68172,2716.2,2715.7,3.68222]
[1739782683157,1.0371,2716.3,2715.8,3.68212]
[1739782683558,0.284,2716.3,2715.8,4.23207]
[1739782683759,0.284,2716.3,2715.9,3.68201]
[1739782683964,3.96549,2716.3,2715.8,3.55]
[1739782684145,3.96549,2716.3,2715.7,7.36446]
[1739782684146,0.284,2716.3,2715.9,3.68193]
[1739782684525,3.68087,2716.8,2716.2,3.49914492]
[1739782685309,7.36304,2716.3,2715.8,3.68208]
[1739782685460,4.417914,2716.2,2715.8,3.68208]
[1739782685661,3.68161,2716.2,2715.8,3.68208]
[1739782685996,3.68148,2716.3,2715.8,3.68208]
[1739782686561,0.7753,2716.4,2716.0,3.0]
[1739782686761,0.7753,2716.4,2715.8,3.55]
[1739782686762,3.6815,2716.3,2715.8,3.55]
[1739782687196,3.6813,2716.5,2716.0,3.68175]
[1739782687361,3.6813,2716.5,2715.8,3.58681805]
[1739782687362,3.6813,2716.5,2715.9,3.68189]
[1739782687695,0.7995,2716.6,2716.2,3.68154]
[1739782687857,0.284,2716.6,2716.2,4.43704]
[1739782688361,1.25564471,2717.2,2716.2,4.43704]
[1739782688362,0.7712,2717.2,2716.3,0.58681303]
[1739782688562,4.45147,2717.2,2716.6,3.68099]
[1739782688798,3.68043,2717.1,2716.6,3.68099]
[1739782689094,4.45146,2717.2,2716.6,7.36199]
[1739782689263,4.45146,2717.2,2716.6,3.68099]
[1739782689664,4.45146,2717.2,2716.7,3.0]
[1739782689665,0.7712,2717.2,2716.7,3.0]
[1739782689899,8.274,2717.3,2717.0,3.68052]
[1739782690258,3.68027,2717.2,2716.8,0.7617]
[1739782691361,3.68027,2717.2,2716.5,4.37542927]
[1739782691362,3.68074,2716.9,2716.5,5.13112927]
[1739782691562,3.68082,2716.8,2716.4,0.55]
[1739782691798,3.68074,2716.9,2716.4,0.55]
[1739782692307,0.736119,2716.9,2716.6,3.68105]
[1739782692491,7.36093,2717.1,2716.6,3.68105]
[1739782692666,3.68045,2717.1,2716.6,3.68105]
[1739782692885,4.73866,2717.2,2716.7,4.23086]
[1739782693085,3.68044,2717.1,2716.7,0.55]
[1739782694216,4.73866,2717.2,2716.7,0.55]
[1739782694419,3.68047,2717.1,2716.6,3.0]
[1739782694586,3.68047,2717.1,2716.6,6.68106]
[1739782694783,6.039926,2717.2,2716.6,6.68106]
[1739782695116,9.720276,2717.2,2716.6,6.68106]
[1739782695300,6.039926,2717.2,2716.6,6.68106]
[1739782695788,2.359666,2717.2,2716.6,3.0]
[1739782695989,3.6804,2717.1,2716.7,3.68084]
[1739782696297,3.68074,2716.9,2716.3,6.68138]
[1739782696487,3.68053,2717.0,2716.5,3.6812]
[1739782697606,1.7994206,2717.1,2716.6,3.68107]
[1739782698013,1.7994206,2717.1,2716.8,3.68078]
[1739782698187,5.4798106,2717.1,2716.7,3.68093]
[1739782698386,1.0584,2717.2,2716.8,3.68072]
[1739782699224,0.284,2717.2,2716.7,0.7764]
[1739782699448,3.68049,2717.1,2716.7,0.7764]
[1739782699728,4.904339,2717.1,2716.5,0.7937]
[1739782699891,3.68074,2716.9,2716.4,6.68125]
[1739782700364,3.68106,2716.7,2716.2,0.7937]
[1739782700564,3.68106,2716.7,2716.2,3.68158]
[1739782700729,3.681,2716.7,2716.3,3.0]
[1739782700930,0.44445,2716.7,2715.9,0.8091]
[1739782701131,3.68143,2716.4,2715.9,4.4911]
[1739782701332,4.44493,2716.4,2716.0,3.0]
[1739782701659,3.68112,2716.6,2716.1,3.68173]
[1739782701859,3.68112,2716.6,2716.0,3.0]
[1739782701860,3.68123,2716.5,2716.0,3.0]
[1739782702081,3.68112,2716.6,2716.0,6.68185]
[1739782702290,4.125582,2716.6,2716.0,6.68185]
[1739782702434,3.68123,2716.5,2716.0,6.68185]
[1739782702631,4.125582,2716.6,2716.0,6.68185]
[1739782702870,3.68123,2716.5,2716.0,3.0]
[1739782703083,0.7806812,2716.4,2715.9,3.682]
[1739782703372,4.4620212,2716.4,2715.9,3.682]
[1739782703535,0.7635,2716.7,2716.1,0.55]
[1739782703735,0.282,2716.6,2716.2,3.68154]
[1739782704355,0.7635,2716.7,2716.2,4.44364]
[1739782704554,0.283,2716.8,2716.3,3.6814]
[1739782704765,3.96382,2716.8,2716.3,3.6814]
[1739782704968,4.077392,2716.7,2716.2,4.44364]
[1739782705282,0.396382,2716.7,2716.4,3.68129]
[1739782705442,0.396382,2716.7,2716.2,11.12523]
[1739782705647,0.283,2716.8,2716.2,7.44363]
[1739782705842,0.283,2716.8,2716.3,3.68139]
[1739782706050,3.68068,2716.9,2716.4,3.68126]
[1739782706256,0.282,2716.9,2716.5,3.68112]
[1739782706475,0.7516,2717.0,2716.6,3.68101]
[1739782706673,1.5991919,2717.0,2716.7,3.68088]
[1739782706981,1.0336,2717.0,2716.6,3.68101]
[1739782707484,0.282,2717.0,2716.6,3.68101]
[1739782707672,0.282,2717.0,2716.7,3.68086]
[1739782707847,0.282,2717.0,2716.6,3.68099]
[1739782708246,0.282,2717.0,2716.7,3.6809]
[1739782708856,1.223849,2717.1,2716.7,3.6809]
[1739782709062,9.3297,2717.3,2716.8,4.5121]
[1739782709263,1.300969,2717.2,2716.8,4.51217]
[1739782709464,1.300969,2717.2,2716.8,0.8314]
[1739782709680,9.0477,2717.3,2716.8,0.8314]
[1739782709986,3.68001,2717.4,2716.8,0.8314]
[1739782709987,0.816,2717.6,2717.1,3.68031]
[1739782710172,3.67985,2717.5,2717.0,3.68052]
[1739782710372,4.23015124,2717.5,2717.0,3.68052]
[1739782710688,4.23015124,2717.5,2716.9,3.68062]
[1739782710882,4.23015124,2717.5,2716.9,3.68054]
[1739782711082,3.68,2717.4,2716.9,3.68054]
[1739782711384,3.68017,2717.3,2716.8,7.51213]
[1739782711585,3.67999,2717.4,2716.9,3.68065]
[1739782711792,4.23022124,2717.5,2716.9,3.68065]
[1739782712155,7.91016124,2717.5,2716.9,3.68065]
[1739782712984,0.55030124,2717.5,2716.9,0.55]
[1739782713192,3.67992,2717.5,2716.9,0.55]
[1739782713486,3.68,2717.4,2716.9,0.55]
[1739782713993,7.35988,2717.5,2716.9,4.23058]
[1739782714304,3.68026,2717.2,2716.8,3.0]
[1739782714460,0.368026,2717.1,2716.8,3.0]
[1739782714661,3.68026,2717.2,2716.8,3.0]
[1739782715090,3.68008,2717.4,2716.8,3.0]
[1739782715272,3.68038,2717.2,2716.8,3.0]
[1739782715660,4.47864,2717.0,2716.8,3.0]
[1739782715978,0.7981,2717.0,2716.8,3.0]
[1739782716180,4.47876,2717.0,2716.5,7.4407]
[1739782716483,3.68096,2716.7,2716.4,3.49122103]
[1739782716680,3.68096,2716.7,2716.0,0.1884434]
[1739782716681,3.68135,2716.4,2715.9,0.7695]
[1739782716860,3.68135,2716.4,2715.9,4.45141]
[1739782718382,3.68163,2716.2,2715.9,3.0]
[1739782719093,3.68139,2716.4,2715.9,3.0]
[1739782719302,3.68161,2716.2,2715.9,3.0]
[1739782719888,3.68147,2716.3,2715.9,3.0]
[1739782720082,0.445539,2716.4,2715.9,6.682]
[1739782720407,3.68134,2716.4,2715.9,3.0]
[1739782720989,4.45528,2716.5,2716.1,3.0]
[1739782721191,3.68138,2716.4,2715.9,3.0]
[1739782721579,4.45528,2716.5,2715.9,3.0]
[1739782721979,3.68149,2716.3,2715.9,3.0]
[1739782722499,7.36307,2716.3,2715.9,3.0]
[1739782722686,3.68149,2716.3,2715.9,3.0]
[1739782724014,7.36304,2716.3,2715.9,3.0]
[1739782724184,3.68182,2716.1,2715.6,4.46081]
[1739782725013,7.3633,2716.2,2715.7,3.0]
[1739782725225,3.68177,2716.1,2715.7,3.0]
[1739782725729,4.4624949,2716.2,2715.7,3.0]
[1739782726091,0.7808849,2716.2,2715.7,6.68224]
[1739782726533,3.68135,2716.4,2715.9,3.68195]
[1739782727313,0.774,2716.5,2715.9,3.68195]
[1739782727623,0.281,2716.4,2716.0,3.68181]
[1739782728183,1.122742,2716.4,2716.0,3.68181]
[1739782729138,1.055,2716.5,2716.3,3.68147]
[1739782729594,0.774,2716.5,2716.4,3.68134]
[1739782729798,0.281,2716.7,2716.4,3.68134]
[1739782730008,0.281,2716.7,2716.4,3.68132]
[1739782730376,0.7521,2716.9,2716.5,3.68111]
[1739782730496,0.281,2716.8,2716.5,3.68118]
[1739782731653,0.281,2716.8,2716.3,3.68137]
[1739782731799,0.281,2716.8,2716.3,7.36277]
[1739782732212,0.281,2716.8,2716.5,3.68119]
[1739782732817,0.281,2716.8,2716.4,3.6813]
[1739782733188,0.281,2716.8,2716.2,3.0]
[1739782733189,0.281,2716.8,2716.5,3.68108]
[1739782733388,8.272,2717.2,2716.6,0.788]
[1739782733696,9.00463719,2717.2,2716.9,3.68066]
[1739782733900,8.272,2717.2,2716.9,3.68066]
[1739782734297,8.272,2717.2,2717.0,3.68044]
[1739782734495,8.272,2717.2,2716.9,3.68066]
[1739782735289,13.257912,2717.2,2716.7,3.68091]
[1739782735734,13.257912,2717.2,2716.6,3.0]
[1739782735735,0.7696,2717.1,2716.6,3.0]
[1739782735946,4.45006,2717.1,2716.6,3.68104]
[1739782736150,3.68075,2716.9,2716.4,3.0]
[1739782736449,3.68075,2716.9,2716.4,3.6813]
[1739782736593,1.0347242,2717.0,2716.7,3.68082]
[1739782736792,1.0347242,2717.0,2716.6,3.68106]
[1739782736793,0.7696,2717.1,2716.8,3.68076]
[1739782737020,0.7696,2717.1,2716.6,3.68094]
[1739782737222,0.7696,2717.1,2716.7,3.68093]
[1739782737422,0.7696,2717.1,2716.3,6.68142]
[1739782737622,0.7696,2717.1,2716.7,3.68085]
[1739782737797,0.7696,2717.1,2716.5,3.49122103]
[1739782738026,0.7696,2717.1,2716.9,3.68058]
[1739782738231,8.272,2717.2,2717.1,3.68039]
[1739782738548,8.272,2717.2,2717.0,3.68044]
[1739782739055,8.272,2717.2,2716.8,3.68069]
[1739782739255,8.272,2717.2,2716.8,3.68079]
[1739782739772,3.68043,2717.1,2716.6,3.68099]
[1739782740078,8.272,2717.2,2716.8,3.68079]
[1739782740224,9.574103,2717.2,2716.8,3.68079]
[1739782740426,9.574103,2717.2,2716.8,3.68072]
[1739782741265,13.254433,2717.2,2716.6,3.68097]
[1739782741559,13.254433,2717.2,2716.7,3.68086]
[1739782742163,9.574103,2717.2,2716.8,3.68079]
[1739782742457,9.574103,2717.2,2716.8,3.68069]
[1739782742658,1.0689,2717.4,2716.8,3.68069]
[1739782742829,0.281,2717.3,2717.0,3.68051]
[1739782743254,0.281,2717.3,2717.0,3.68039]
[1739782743457,0.7879,2717.4,2716.8,3.49122103]
[1739782743665,0.7879,2717.4,2717.2,3.68021]
[1739782743834,0.7879,2717.4,2716.9,0.7688]
[1739782744040,0.7879,2717.4,2717.0,3.68046]
[1739782744651,0.7879,2717.4,2717.1,3.68031]
[1739782745065,0.7879,2717.4,2717.2,3.68017]
[1739782745557,8.271,2717.8,2717.2,3.68025]
[1739782745558,0.7583,2717.7,2717.2,3.68025]
[1739782745757,1.5854,2717.7,2717.2,3.68018]
[1739782745957,1.5854,2717.7,2717.3,3.68009]
[1739782746178,1.5854,2717.7,2717.2,3.68017]
[1739782746378,5.265,2717.7,2717.2,3.68017]
[1739782746585,1.3817,2717.6,2717.2,3.68017]
[1739782748899,1.3817,2717.6,2717.2,7.36035]
[1739782749203,1.3817,2717.6,2717.2,3.68017]
[1739782749399,5.0615,2717.6,2717.1,3.49122103]
[1739782749584,3.68005,2717.4,2716.9,3.68058]
[1739782749789,0.957397,2717.4,2716.9,3.68058]
[1739782750097,0.8325,2717.5,2717.0,3.68046]
[1739782750294,9.3444,2717.8,2717.4,3.67998]
[1739782750698,9.3444,2717.8,2717.4,3.67989]
[1739782751397,9.0634,2717.8,2717.4,7.35981]
[1739782751598,0.74813555,2717.9,2717.4,3.49122103]
[1739782751904,0.281,2718.2,2718.1,3.67904]
[1739782752197,9.0658,2718.6,2718.1,3.67904]
[1739782752397,9.0658,2718.6,2718.1,3.67895]
[1739782752599,9.0658,2718.6,2718.2,3.67884]
[1739782752803,8.27,2718.6,2718.4,3.67855]
[1739782753181,8.27,2718.6,2718.3,3.49122103]
[1739782753502,8.27,2718.6,2718.5,3.67849]
[1739782753707,8.27,2718.6,2718.0,7.24302103]
[1739782753708,8.27,2718.6,2718.3,3.67875]
[1739782754080,8.27,2718.6,2718.2,3.67879]
[1739782754476,8.27,2718.6,2718.3,3.67869]
[1739782754906,8.27,2718.6,2718.4,3.67861]
[1739782755081,8.27,2718.6,2718.5,3.67849]
[1739782756014,0.015,2718.7,2718.6,4.22836]
[1739782756211,0.015,2718.7,2718.6,7.71958103]
[1739782757315,0.015,2718.7,2718.6,10.71958103]
[1739782760991,0.015,2718.7,2718.6,3.0]
[1739782761597,0.015,2718.7,2718.4,3.49122103]
[1739782761828,0.015,2718.7,2718.5,3.0]
[1739782762436,0.015,2718.7,2718.4,3.49122103]
[1739782762795,3.6933,2718.7,2718.4,3.49122103]
[1739782762995,0.015,2718.7,2718.4,3.49122103]
[1739782763534,0.015,2718.7,2718.4,4.28806613]
[1739782763904,0.015,2718.7,2718.4,7.96658613]
[1739782764238,0.015,2718.7,2718.5,3.67841]
[1739782764434,0.015,2718.7,2718.4,4.28806613]
[1739782765131,0.015,2718.7,2718.5,3.67838]
[1739782765313,0.015,2718.7,2718.5,4.84296561]
[1739782765508,0.015,2718.7,2718.6,3.67836]
[1739782766123,0.015,2718.7,2718.5,4.84296561]
[1739782766437,0.015,2718.7,2718.6,3.67836]
[1739782766637,0.015,2718.7,2718.6,8.05146]
[1739782766938,0.015,2718.7,2718.6,9.76970917]
[1739782769532,0.015,2718.7,2718.6,9.21970917]
[1739782770047,0.015,2718.7,2718.6,4.71824917]
[1739782770209,0.015,2718.7,2718.6,1.71824917]
[1739782770410,0.015,2718.7,2718.5,8.52131561]
[1739782770627,0.015,2718.7,2718.6,3.67836]
[1739782771244,0.015,2718.7,2718.6,4.22836]
[1739782772748,0.015,2718.7,2718.6,7.99046]
[1739782774250,0.015,2718.7,2718.6,7.44046]
[1739782774419,0.015,2718.7,2718.6,9.56791866]
[1739782776367,0.015,2718.7,2718.6,8.80581866]
[1739782777386,0.015,2718.7,2718.6,4.57745866]
[1739782777691,0.015,2718.7,2718.6,8.25581866]
[1739782777891,0.015,2718.7,2718.6,8.80581866]
[1739782779971,0.015,2718.7,2718.6,8.25581866]
[1739782780621,0.015,2718.7,2718.6,4.57745866]
[1739782780905,0.015,2718.7,2718.6,1.57745866]
[1739782781072,0.015,2718.7,2718.4,3.67861]
[1739782781274,0.8386,2718.7,2718.4,3.0]
[1739782781908,3.67842,2718.6,2718.1,7.17017103]
[1739782782220,0.8386,2718.7,2718.2,3.0]
[1739782782380,3.67843,2718.6,2718.2,3.0]
[1739782782720,4.51692,2718.7,2718.2,3.0]
[1739782783010,3.67858,2718.5,2717.9,6.67922]
[1739782783198,3.67858,2718.5,2718.0,3.6791]
[1739782783379,4.51687,2718.7,2717.9,3.99502825]
[1739782783580,4.51687,2718.7,2718.2,3.0]
[1739782784016,3.67843,2718.6,2718.2,3.0]
[1739782784388,3.67856,2718.5,2718.0,3.0]
[1739782784593,3.67856,2718.5,2718.0,6.67913]
[1739782784996,4.50033,2718.5,2718.0,3.0]
[1739782785309,4.50033,2718.5,2718.0,7.79561693]
[1739782785502,0.8217,2718.5,2718.0,4.11654693]
[1739782785716,3.67877,2718.3,2717.8,3.49122103]
[1739782785916,3.67877,2718.3,2717.8,6.49122103]
[1739782786225,3.67896,2718.2,2717.8,3.49122103]
[1739782786552,3.67896,2718.2,2717.7,3.67949]
[1739782786553,0.8171,2718.2,2717.7,3.0]
[1739782786848,3.67913,2718.1,2717.6,6.67959]
[1739782787625,3.67906,2718.1,2717.6,6.67959]
[1739782788421,4.49607,2718.2,2717.7,3.67957]
[1739782788632,3.67907,2718.1,2717.6,8.09957431]
[1739782789200,3.67907,2718.1,2717.5,7.52017313]
[1739782789401,0.8171,2718.2,2717.3,3.68003]
[1739782789600,0.7638,2717.8,2717.2,3.49122103]
[1739782789811,3.67969,2717.7,2717.3,3.0]
[1739782790016,0.7638,2717.8,2717.3,3.68011]
[1739782790219,4.44327,2717.8,2717.3,3.68011]
[1739782790399,0.7638,2717.8,2717.3,3.68011]
[1739782790591,0.7638,2717.8,2717.4,3.67998]
[1739782790824,0.7638,2717.8,2717.5,3.67982]
[1739782790987,0.7638,2717.8,2717.4,3.67998]
[1739782790988,4.44325,2717.8,2717.4,3.67998]
[1739782791194,0.7638,2717.8,2717.4,3.67998]
[1739782792029,0.7638,2717.8,2717.5,3.67981]
[1739782792225,0.7638,2717.8,2717.4,3.6799]
[1739782793299,0.7638,2717.8,2717.5,3.67983]
[1739782793794,1.04,2718.2,2717.5,1.64918346]
[1739782794130,1.04,2718.2,2717.8,3.67933]
[1739782794426,1.04,2718.2,2717.9,3.67928]
[1739782794627,3.67868,2718.4,2717.9,3.67928]
[1739782794791,3.67816,2718.8,2717.9,3.67928]
[1739782794792,0.7888,2718.6,2718.3,3.67868]
[1739782794992,0.7888,2718.6,2718.2,3.67883]
[1739782795219,4.46725,2718.6,2718.1,3.0]
[1739782795404,3.6785,2718.5,2718.0,3.67908]
[1739782795930,3.6785,2718.5,2718.0,7.35818]
[1739782796131,3.6785,2718.5,2718.1,3.67903]
[1739782796427,0.816056,2718.5,2717.8,6.6794]
[1739782796632,3.6787,2718.4,2717.8,10.35875]
[1739782796930,0.816056,2718.5,2718.0,3.67914]
[1739782797127,4.46725,2718.6,2718.0,3.67909]
[1739782797327,1.0698,2718.6,2717.9,0.55]
[1739782797520,1.0698,2718.6,2718.0,3.67917]
[1739782797830,4.74816,2718.6,2718.1,3.67895]
[1739782798397,1.0698,2718.6,2718.0,3.67917]
[1739782798593,0.7888,2718.6,2718.3,3.67876]
[1739782798998,0.7888,2718.6,2718.4,3.67862]
[1739782799296,0.015,2718.7,2718.2,0.801]
[1739782799500,0.015,2718.7,2718.6,3.67836]
[1739782800228,0.015,2718.7,2718.3,3.67867]
[1739782800405,3.67851,2718.5,2718.0,3.67917]
[1739782800607,0.8054,2718.6,2718.3,3.67872]
[1739782800923,0.8054,2718.6,2718.1,3.67897]
[1739782801094,0.8054,2718.6,2718.3,3.67864]
[1739782801296,0.015,2718.7,2718.2,0.55]
[1739782801501,0.015,2718.7,2718.4,0.7811]
[1739782801701,0.015,2718.7,2718.1,2.3851191]
[1739782801935,0.8147,2718.5,2718.0,15.5491]
[1739782802134,0.8147,2718.5,2718.1,3.67903]
[1739782802838,0.8147,2718.5,2718.4,3.67863]
[1739782803136,0.015,2718.7,2718.3,3.67868]
[1739782803336,0.8125,2718.3,2717.8,0.7618]
[1739782803502,0.8125,2718.3,2717.9,3.67924]
[1739782803702,0.8125,2718.3,2718.0,3.67914]
[1739782803926,0.8125,2718.3,2718.1,3.67896]
[1739782804335,0.8125,2718.3,2717.9,3.67923]
[1739782804733,0.8125,2718.3,2717.9,3.67927]
[1739782805607,0.8125,2718.3,2717.9,7.3585]
[1739782805838,0.8125,2718.3,2717.9,3.67923]
[1739782806202,3.67891,2718.2,2717.7,3.67948]
[1739782806402,3.67891,2718.2,2717.7,7.35899]
[1739782806657,3.67891,2718.2,2717.7,3.67948]
[1739782806970,0.8125,2718.3,2717.8,3.67934]
[1739782807126,0.8125,2718.3,2717.9,3.67928]
[1739782807545,0.8125,2718.3,2717.8,3.67941]
[1739782807546,4.49134,2718.3,2717.8,3.67941]
[1739782807970,0.8125,2718.3,2717.8,0.735889]
[1739782808128,0.8125,2718.3,2717.8,3.67937]
[1739782808547,0.8125,2718.3,2717.9,3.67923]
[1739782808872,0.8125,2718.3,2717.8,3.67937]
[1739782809020,4.49134,2718.3,2717.8,3.67937]
[1739782809518,3.67899,2718.2,2717.7,3.67955]
[1739782809920,3.67899,2718.2,2717.6,4.2297]
[1739782810122,3.67912,2718.1,2717.6,4.2297]
[1739782810430,3.67899,2718.2,2717.6,4.2297]
[1739782810777,3.67899,2718.2,2717.8,0.27180683]
[1739782811175,7.35797,2718.2,2717.8,0.27180683]
[1739782811468,0.8125,2718.3,2717.8,0.27180683]
[1739782811617,4.49127,2718.3,2717.8,3.95119683]
[1739782811818,0.8125,2718.3,2717.8,3.95121683]
[1739782812367,4.49135,2718.3,2717.8,3.95121683]
[1739782812523,4.49135,2718.3,2717.8,0.27180683]
[1739782812723,0.8125,2718.3,2717.9,0.27180683]